[Event "1st Kallai Gabor Memorial Blitz 2022"]
[Site "Budapest"]
[Date "2022.12.01"]
[Round "2.1"]
[White "Troff, Kayden"]
[Black "Motylev, Alexander"]
[Result "1-0"]
[ECO "D02"]
[WhiteElo "2483"]
[BlackElo "2628"]
[Annotator "TA"]
[PlyCount "147"]
[EventDate "2022.12.01"]
[EventType "blitz"]
[EventCountry "HUN"]
[SourceTitle "playchess.com"]
[Source "ChessBase"]
[SourceQuality "1"]
[TimeControl "300+3"]

{[%evp 9,147,0,-2,-38,-15,-14,-4,-8,-25,-19,-12,-20,8,10,11,16,20,15,22,27,20,26,19,23,20,12,26,22,19,19,19,22,21,25,25,26,27,12,10,7,12,8,10,0,0,0,0,0,0,0,0,0,0,0,0,0,0,0,0,0,0,0,0,0,17,0,0,0,0,0,1,1,1,0,0,0,1,1,1,2,8,8,63,77,677,592,580,743,2075,1941,6195,7971,6175,6050,29966,29967,29968,29969,29969,29969,29969,29970,29970,0,29968,29967,29969,29968,29969,29970,29970,29967,29967,29968,29968,29969,29969,29970,29970,29972,29970,29972,29981,29970,29975,29976,29976,29974,29976,29979,29979,29980,29980,29981,29982,29982,29983,29983,29983,29984]} 1. d4 {[%emt 0:00:04]} d5 {[%emt 0:00:05]} 2. Nf3 {[%emt 0:00:02]} Nf6 {[%emt 0:00:01]} 3. Bf4 {[%emt 0:00:02]} c5 {[%emt 0:00:06]} 4. e3 {[%emt 0:00:01]} e6 {[%emt 0:00:03]} 5. Nc3 a6 {[%emt 0:00:20]} 6. Ne5 {[%emt 0:00:07] D02: 1 d4 d5 2 Nf3 sidelines, including 2...Nf6 3 g3 and 2...Nf6 3 Bf4.} Nbd7 {[%emt 0:00:09]} 7. Be2 {[%emt 0:00:16]} Be7 {[%emt 0:00:08]} 8. O-O {[%emt 0:00:03] The position is equal.} O-O {[%emt 0:00:11]} 9. Bf3 {[%emt 0:00:14]} Nxe5 {[%emt 0:00:20]} 10. Bxe5 {[%emt 0:00:18] [#]} Bd7 $146 {[%emt 0:00:14]} (10... Nd7 $5 {[%cal Rd7e5]}) ({Predecessor:} 10... cxd4 11. Qxd4 Bd7 12. e4 dxe4 13. Nxe4 Bc6 14. Nxf6+ Bxf6 15. Bxf6 Qxf6 16. Qxf6 gxf6 17. Bxc6 bxc6 {½-½ (59) Ivarsson,T (2075)-Brynell,S (2415) Malmo 2019}) 11. dxc5 {[%emt 0:00:18]} Bxc5 {[%emt 0:00:03]} 12. e4 {[%emt 0:00:02][%cal Re4d5]} Bc6 {[%emt 0:00:45][%cal Rf6e4]} 13. exd5 {[%emt 0:00:34]} Nxd5 {[%emt 0:00:01]} 14. Nxd5 {[%emt 0:00:02]} Bxd5 {[%emt 0:00:02]} 15. Bxd5 {[%emt 0:00:16]} Qxd5 {[%emt 0:00:01]} 16. Qxd5 {[%emt 0:00:05]} exd5 {[%emt 0:00:01]} 17. Rad1 {[%emt 0:00:02]} Rad8 {[%emt 0:00:04]} 18. Bd4 {[%emt 0:00:22]} Rc8 {[%emt 0:00:26]} 19. c3 {[%emt 0:00:21]} Rfe8 {[%emt 0:00:04]} 20. Bxc5 {[%emt 0:00:31]} Rxc5 $11 {[%emt 0:00:01][%mdl 4096] Endgame KRR-KRR} 21. Rd2 {[%emt 0:00:03]} Kf8 {[%emt 0:01:36]} 22. Rfd1 {[%emt 0:00:05]} Re5 23. f4 {[%emt 0:00:45]} Re4 {[%emt 0:00:11]} 24. g3 {[%emt 0:00:01]} Ke7 {[%emt 0:00:18]} 25. Kf2 {[%emt 0:00:32]} Ke6 $1 {[%emt 0:00:01]} 26. Kf3 {[%emt 0:00:01]} h5 {[%emt 0:00:04]} 27. Rd3 {[%emt 0:00:20]} a5 {[%emt 0:00:04] Inhibits b4.} 28. R1d2 {[%emt 0:00:10]} g6 {[%emt 0:00:02]} 29. Rd4 {[%emt 0:00:09]} Rxd4 {[%emt 0:00:04]} 30. Rxd4 {[%emt 0:00:02] KR-KR} Rb5 {[%emt 0:00:01]} 31. Rd2 {[%emt 0:00:01]} a4 {[%emt 0:00:04]} 32. Ke3 {[%emt 0:00:07]} Rc5 {[%emt 0:00:16]} 33. Kd3 {[%emt 0:00:04]} Rb5 {[%emt 0:00:04]} 34. Kd4 {[%emt 0:00:01]} Kd6 {[%emt 0:00:06]} 35. Re2 {[%emt 0:00:04]} Rb6 {[%emt 0:00:04]} 36. Kd3 {[%emt 0:00:09]} Rb5 {[%emt 0:00:07]} 37. h3 {[%emt 0:00:03]} Rb6 {[%emt 0:00:04]} 38. g4 {[%emt 0:00:03]} hxg4 {[%emt 0:00:01]} 39. hxg4 {[%emt 0:00:01]} Rb5 {[%emt 0:00:01]} 40. Kd4 {[%emt 0:00:09]} Rb6 {[%emt 0:00:04]} 41. f5 {[%emt 0:00:02]} gxf5 {[%emt 0:00:06]} 42. gxf5 {[%emt 0:00:01]} Rc6 {[%emt 0:00:01]} 43. b3 {[%emt 0:00:04]} axb3 {[%emt 0:00:01]} 44. axb3 {[%cal Ba2b3,Bb3b4][%mdl 32] With the idea Re8.} Rb6 $1 45. Rb2 {[%emt 0:00:08]} Ra6 {[%emt 0:00:20]} (45... Ke7 $11) 46. Rh2 $14 {[%emt 0:00:01] [#] Intending Rh6+ and mate. White now steadily converts the win.} Ra3 $2 {[%emt 0:00:28][%mdl 8192]} (46... Ke7 $16) 47. Rh6+ $18 {[%emt 0:00:02]} Ke7 {[%emt 0:00:00]} 48. Rb6 {[%emt 0:00:01]} (48. Kxd5 Rxb3 49. f6+ Kd7 $11) 48... Ra5 {[%emt 0:00:06]} 49. b4 {[%emt 0:00:07]} Ra3 {[%emt 0:00:02]} 50. Rxb7+ {[%emt 0:00:07]} Kf6 {[%emt 0:00:00]} 51. Rd7 {[%emt 0:00:04]} (51. Kxd5 Rxc3 52. b5 Rf3 $16) 51... Kxf5 {[%emt 0:00:04]} 52. Rxf7+ {[%emt 0:00:04]} Ke6 {[%emt 0:00:01]} 53. Rh7 {[%emt 0:00:01]} Kd6 {[%emt 0:00:03]} 54. Rh6+ {[%emt 0:00:02]} Kc7 {[%emt 0:00:01]} 55. Rh5 {[%emt 0:00:02]} (55. Kxd5 Rxc3 56. Rh7+ (56. b5 Rc1 $11) 56... Kb6 $11) 55... Kc6 {[%emt 0:00:01]} 56. Rh6+ {[%emt 0:00:06]} Kc7 {[%emt 0:00:01]} 57. Rh8 {[%emt 0:00:10] White mates.} (57. Kxd5 Rxc3 58. Rg6 (58. b5 Kb7 $11) 58... Rc1 $11) 57... Rb3 {[%emt 0:00:09]} 58. Re8 {[%emt 0:00:10]} (58. Kxd5 Rxc3 59. Rh7+ Kb6 $11) 58... Ra3 {[%emt 0:00:01]} 59. Re5 {[%emt 0:00:04]} (59. Kxd5 Rxc3 60. Rf8 Kb6 $11) 59... Kc6 {[%emt 0:00:01]} 60. Re6+ {[%emt 0:00:02]} Kc7 {[%emt 0:00:01]} 61. b5 {[%emt 0:00:08]} ({And not} 61. Kxd5 Rxc3 62. Rg6 (62. b5 Rc1 $11) 62... Rc2 $11) 61... Rb3 {[%emt 0:00:00]} 62. Rc6+ {[%emt 0:00:01]} ({Not} 62. Kxd5 Rxb5+ 63. Kd4 Rb1 $11) 62... Kb7 {[%emt 0:00:07] [#]} 63. Rc5 $1 {[%emt 0:00:00]} ({Inferior is} 63. Kxd5 Rxb5+ 64. Rc5 Rb6 $11) 63... Kb6 {[%emt 0:00:02]} 64. Rxd5 {[%emt 0:00:02]} Rb1 {[%emt 0:00:03]} 65. Kc4 {[%emt 0:00:03]} Ka5 {[%emt 0:00:03]} 66. Rd8 {[%emt 0:00:03]} Kb6 {[%emt 0:00:01]} 67. Rd6+ {[%emt 0:00:01]} Kc7 {[%emt 0:00:02]} 68. Rh6 {[%emt 0:00:02]} Kb7 {[%emt 0:00:03]} 69. Kc5 {[%emt 0:00:02]} Rg1 {[%emt 0:00:06]} 70. Rh7+ {[%emt 0:00:01]} Kb8 {[%emt 0:00:01]} 71. c4 {[%emt 0:00:02]} Rg4 {[%emt 0:00:01]} 72. b6 {[%emt 0:00:00]} Rg1 {[%emt 0:00:05]} 73. Kc6 {[%emt 0:00:02]} Rg6+ {[%emt 0:00:02]} 74. Kb5 {[%emt 0:00:00] Weighted Error Value: White=0.12 (very precise) /Black=0.29 (precise)} 1-0

[Event "1st Kallai Gabor Memorial Blitz 2022"]
[Site "Budapest"]
[Date "2022.12.01"]
[Round "2.2"]
[White "Horvath, Csaba"]
[Black "Gaal, Zsoka"]
[Result "1-0"]
[ECO "A04"]
[WhiteElo "2502"]
[BlackElo "2286"]
[Annotator "TA"]
[PlyCount "117"]
[EventDate "2022.12.01"]
[EventType "blitz"]
[EventCountry "HUN"]
[SourceTitle "playchess.com"]
[Source "ChessBase"]
[SourceQuality "1"]
[TimeControl "300+3"]

{[%evp 9,117,0,0,4,7,6,0,-5,-8,-14,0,0,0,0,0,-12,-8,-11,12,-5,38,0,0,-14,0,-42,9,-28,4,-23,59,0,49,-54,-56,-87,-89,-139,-150,-142,-88,-73,-56,-70,-51,-56,78,79,104,70,210,210,183,210,201,189,487,485,454,422,393,236,239,237,225,213,240,236,242,225,456,436,473,466,521,358,332,350,469,458,591,586,690,690,620,473,851,652,708,0,697,655,820,796,848,832,847,813,29965,6087,29962,29966,29973,29975,29990,29991,29991,29992,29992,29993]} 1. Nf3 {[%emt 0:00:04]} c5 {[%emt 0:00:08]} 2. e3 {[%emt 0:00:17]} g6 {[%emt 0:00:27]} 3. d4 {[%emt 0:00:02]} Bg7 {[%emt 0:00:01]} 4. dxc5 {[%emt 0:00:06]} Qa5+ {[%emt 0:00:05]} 5. Nbd2 {[%emt 0:00:02]} Qxc5 {[%emt 0:00:03]} 6. a3 {[%emt 0:00:02] A40: Unusual replies to 1 d4.} Qc7 {[%emt 0:00:03]} 7. c4 Nc6 {[%emt 0:00:04][%cal Bb8c6,Bc6e5,Be5d7,Bd7c5][%mdl 32]} 8. Be2 {[%emt 0:00:07] The position is equal.} Nf6 {[%emt 0:00:04]} 9. O-O {[%emt 0:00:03]} d6 {[%emt 0:00:01]} 10. Nd4 {[%emt 0:00:15]} O-O {[%emt 0:00:03]} 11. b4 {[%emt 0:00:06]} a5 {[%emt 0:00:37] [#]} 12. b5 $146 ({Predecessor:} 12. Nxc6 bxc6 13. Bb2 Bb7 14. Bc3 axb4 15. axb4 c5 16. b5 Nd7 17. Qc2 Bxc3 18. Qxc3 {½-½ (59) Barcza,G-Bondarevsky,I Budapest 1961}) 12... Ne5 {[%emt 0:00:20]} 13. Bb2 {[%emt 0:00:23]} h5 {[%emt 0:00:35]} 14. h3 {[%emt 0:00:08]} a4 {[%emt 0:00:11]} 15. Rc1 (15. f4 $5 {[%cal Rf4e5]}) 15... Ned7 {[%emt 0:00:11]} 16. Bc3 {[%emt 0:01:12]} Nc5 {[%emt 0:00:02]} 17. Bb4 {[%emt 0:00:01]} Nh7 {[%emt 0:00:17]} (17... e5 $15 18. N4f3 Bf5) 18. f4 {[%emt 0:00:29]} Nf6 {[%emt 0:01:16]} 19. Qc2 {[%emt 0:00:07]} h4 (19... Re8 $11) 20. Qd1 {[%emt 0:00:14]} ({Better is} 20. Bf3 $14) 20... Nfe4 {[%emt 0:00:23]} (20... Re8 $1 $11 {feels stronger.}) 21. Bxc5 {[%emt 0:00:19]} (21. Nxe4 $14 Nxe4 22. Bd3) 21... Nxc5 $15 {[%emt 0:00:09]} 22. Qe1 {[%emt 0:00:04]} e5 {[%emt 0:00:02]} 23. fxe5 {[%emt 0:00:15]} (23. Nc2 $142) 23... dxe5 $17 {[%emt 0:00:01]} 24. Nc2 {[%emt 0:00:01][%cal Bd4c2,Bc2b4,Bb4d5,Bd5e7][%mdl 32]} Nb3 {[%emt 0:00:06]} (24... Qe7 $142 25. Nb4 Qg5) 25. Rd1 {[%emt 0:00:27]} Bf5 {[%emt 0:00:09] Prevents Ne4.} 26. Nb4 {[%emt 0:00:03]} Nxd2 {[%emt 0:00:05]} 27. Rxd2 {[%emt 0:00:03]} Be4 {[%emt 0:00:19]} (27... Qc5 $15 {keeps the upper hand.} 28. Nd5 Be6) 28. Qxh4 $16 {[%emt 0:00:06]} f5 29. Nd5 {[%emt 0:00:36] White is more active.} Qc5 {[%emt 0:00:22]} ({Black should play} 29... Bxd5 $14 30. Rxd5 (30. cxd5 Qc3 $11) 30... Rad8) 30. Ne7+ $18 {[%emt 0:00:05]} Kf7 31. Qxe4 {[%emt 0:00:08][%cal Of1f5] [#] Intending Rxf5+! and mate.} Qxe7 {[%emt 0:00:12]} 32. Qd5+ {[%emt 0:00:02]} Qe6 $2 {[%emt 0:00:12]} (32... Ke8 33. Rfd1 Bh6) 33. Qxb7+ Kg8 {[%emt 0:00:00]} 34. Rd7 {[%emt 0:00:25]} Bh6 {[%emt 0:00:01]} 35. Kh1 {[%emt 0:00:08]} ({And not} 35. Rh7 Bxe3+ 36. Kh1 Ra7 37. Rg7+ Kh8 $14) 35... Rab8 {[%emt 0:00:07]} 36. Qd5 {[%emt 0:00:09]} Qxd5 {[%emt 0:00:02]} 37. Rxd5 {[%emt 0:00:01]} ({Don't do} 37. cxd5 $6 Bxe3 38. Rc7 Rf6 $16) 37... e4 {[%emt 0:00:07]} 38. c5 {[%emt 0:00:05][%cal Bc4c5,Bc5c6][%mdl 32]} Bxe3 39. c6 {[%emt 0:00:01]} f4 $2 {[%emt 0:00:05]} (39... Kg7 40. Rfd1 Bb6 41. Rd7+ Rf7) 40. Bg4 {[%emt 0:00:04]} Bb6 {[%emt 0:00:06] Prevents c7.} 41. Rd7 {[%emt 0:00:05]} e3 {[%emt 0:00:02]} 42. Be6+ {[%emt 0:00:05]} Kh8 {[%emt 0:00:01]} 43. Bc4 {[%emt 0:00:02]} Rbe8 {[%emt 0:00:05]} 44. Rb7 {[%emt 0:00:04]} Ba5 {[%emt 0:00:03]} 45. Be2 {[%emt 0:00:03]} ({Less strong is} 45. b6 Rf6 $18) 45... Rd8 46. c7 {[%emt 0:00:07]} Rc8 {[%emt 0:00:08]} 47. b6 {[%emt 0:00:02]} g5 {[%emt 0:00:02]} (47... Bxb6 $142 48. Rxb6 Rxc7 49. Rxg6 Rc3) 48. Bg4 {[%emt 0:00:02]} Rfe8 49. Be2 $2 {[%emt 0:00:06]} ({White should try} 49. Bxc8 $18 {Bg4 would kill now.} e2 50. Rg1) 49... Kg7 $2 {[%emt 0:00:06][%mdl 8192]} (49... Rf8 $11 50. Rc1 Bd2) 50. Rd1 {[%emt 0:00:03] [#] aiming for Rd8.} Bd2 {[%emt 0:00:04]} 51. Kg1 Kf6 {[%emt 0:00:00]} 52. Kf1 {[%emt 0:00:03]} Ke5 53. Bg4 {[%emt 0:00:02]} Kd4 {[%emt 0:00:08]} 54. Ke2 {[%emt 0:00:02]} Ra8 {[%emt 0:00:05]} 55. Ra7 {[%emt 0:00:04] White mates.} f3+ 56. gxf3 {[%emt 0:00:02]} Rac8 {[%emt 0:00:04]} 57. Bxc8 {[%emt 0:00:02]} Rxc8 58. b7 {[%emt 0:00:02]} Rxc7 {[%emt 0:00:06]} 59. b8=Q {[%emt 0:00:03] Never resign too early!   Weighted Error Value: White=0.42/Black=0.71} 1-0

[Event "1st Kallai Gabor Memorial Blitz 2022"]
[Site "Budapest"]
[Date "2022.12.01"]
[Round "2.3"]
[White "Borhy, Marcell"]
[Black "Beliavsky, Alexander G"]
[Result "1/2-1/2"]
[ECO "D41"]
[WhiteElo "2407"]
[BlackElo "2487"]
[Annotator "TA"]
[PlyCount "105"]
[EventDate "2022.12.01"]
[EventType "blitz"]
[EventCountry "HUN"]
[SourceTitle "playchess.com"]
[Source "ChessBase"]
[SourceQuality "1"]
[TimeControl "300+3"]

{[%evp 11,105,22,22,22,38,-12,34,30,37,34,49,20,34,36,66,23,52,47,46,55,63,60,96,107,107,107,108,102,141,141,142,141,149,150,141,148,148,151,143,141,145,137,169,152,177,134,131,133,134,140,147,147,151,108,359,177,141,87,87,87,88,88,88,0,0,0,0,0,0,0,0,-8,-8,-8,0,0,0,-8,-8,-8,-8,-8,-8,-8,-8,-8,-8,-8,0,-8,-8,-8,-8,-8,-8,-8]} 1. Nf3 {[%emt 0:00:06]} Nf6 {[%emt 0:00:04]} 2. c4 {[%emt 0:00:02]} e6 {[%emt 0:00:02]} 3. Nc3 {[%emt 0:00:03]} d5 {[%emt 0:00:03]} 4. d4 {[%emt 0:00:02]} c5 {[%emt 0:00:02]} 5. cxd5 {[%emt 0:00:02]} cxd4 {[%emt 0:00:01]} 6. Qxd4 {[%emt 0:00:02]} exd5 {[%emt 0:00:01]} 7. e4 {[%emt 0:00:02] D41: Queen's Gambit Declined: Semi-Tarrasch with 5 cxd5.} dxe4 $1 {[%emt 0:00:01][%mdl 4] is recently more successful than 7...Nc6.} 8. Qxd8+ {[%emt 0:00:03]} Kxd8 {[%emt 0:00:01]} 9. Ng5 {[%emt 0:00:01][%csl LRe4,LRf7] White is slightly better.} Be6 {[%emt 0:00:01]} 10. Nxe6+ {[%emt 0:00:05]} fxe6 {[%emt 0:00:01]} 11. Bc4 {[%emt 0:00:01]} Bb4 {[%emt 0:00:15]} 12. Bxe6 {[%emt 0:00:17]} Nc6 {[%emt 0:00:14]} 13. O-O {[%emt 0:00:39] [#] next Nd5 is good for White.} Ke7 $146 {[%emt 0:00:09]} (13... Nd4 {with more complications.} 14. Rd1 Ke7 15. Bc4 Rhd8) ({Predecessor:} 13... h6 14. a3 Bc5 15. Bf5 Re8 16. Rd1+ Kc7 17. Bf4+ Kb6 18. Na4+ Kb5 19. Nxc5 Kxc5 {1-0 (79) Grinberg,I (2146)-Peretz,M (2272) Porto 2014}) 14. Bb3 {[%emt 0:00:07] This pair of bishops is nice.} Rad8 {[%emt 0:00:28] Inhibits Nd5+.} 15. Bg5 {[%emt 0:00:23]} Bxc3 {[%emt 0:00:06]} 16. bxc3 Rhe8 {[%emt 0:00:16]} 17. f3 {[%emt 0:00:41]} h6 {[%emt 0:02:15]} 18. Bxf6+ {[%emt 0:00:03]} gxf6 {[%emt 0:00:01]} 19. Rae1 {[%emt 0:00:13] Inhibits e3.} Rd3 {[%emt 0:00:21][%cal Oe4e3]} 20. Rxe4+ ({Much worse is} 20. fxe4 $6 Rxc3 21. h3 b5 $11) 20... Kf8 21. Rf4 {[%emt 0:00:54]} Rd6 {[%emt 0:00:21]} 22. Rg4 {[%emt 0:00:48] [#] Rg8+ is the strong threat.} Ne7 {[%emt 0:00:11] Against Rg8+} 23. Re1 {[%emt 0:00:05]} Red8 {[%emt 0:00:03]} 24. Rh4 {[%emt 0:00:26] White is more active.} f5 {[%emt 0:00:11]} 25. Rb4 {[%emt 0:00:19]} b6 {[%emt 0:00:02]} 26. Rb5 {[%emt 0:00:03]} Rg6 {[%emt 0:00:05]} 27. Rbe5 {[%emt 0:00:03]} Rd2 {[%emt 0:00:04]} 28. R5e2 {[%emt 0:00:02]} ({And not} 28. Rxe7 Rgxg2+ 29. Kh1 Rxh2+ 30. Kg1 Rhg2+ 31. Kh1 Rh2+ 32. Kg1 Rhg2+ 33. Kh1 Rh2+ $11) 28... Rxe2 {[%emt 0:00:03]} 29. Rxe2 $16 {[%emt 0:00:01][%mdl 4096] Endgame KRB-KRN} Rd6 {[%emt 0:00:03] Inhibits Rd2.} 30. Kf2 {[%emt 0:00:12]} Ng6 {[%emt 0:00:14]} 31. g3 {[%emt 0:00:20]} Rc6 {[%emt 0:00:02]} 32. h4 {[%emt 0:00:06]} Rxc3 $2 {[%emt 0:00:07][%mdl 8192]} (32... f4 $16 {is a better defense.}) 33. h5 {[%emt 0:00:01]} (33. Re6 $142 Kg7 34. h5) 33... Ne7 $18 {[%emt 0:00:01]} 34. Re6 {[%emt 0:00:01]} ({White should try} 34. Rd2) 34... Rc6 $16 {[%emt 0:00:03]} 35. Ke3 {[%emt 0:00:19] Black must now prevent Kf4.} Rxe6+ {[%emt 0:00:02]} 36. Bxe6 {[%emt 0:00:02] KB-KN} Kg7 {[#]} 37. g4 {[%emt 0:00:02]} (37. Kd4 $1 $16) 37... fxg4 $11 {[%emt 0:00:08] The position is equal.} 38. fxg4 Kf6 {[%emt 0:00:00]} 39. Bd7 {[%emt 0:00:06]} Kg5 {[%emt 0:00:06]} 40. Ke4 Ng8 {Strongly threatening ...Nf6+.} 41. Kf3 {[%emt 0:00:05]} Nf6 {[%emt 0:00:01]} 42. Be6 {[%emt 0:00:00]} Ne8 {[%emt 0:00:06]} (42... b5 $5 {[%cal Rb5b4]}) 43. Ke4 {[%emt 0:00:04]} Nf6+ {[%emt 0:00:04]} 44. Kf3 {[%emt 0:00:01]} b5 {[%emt 0:00:02]} 45. Bc8 {[%emt 0:00:09]} a5 {[%emt 0:00:01]} (45... b4 $5) 46. a3 {[%emt 0:00:06]} b4 {[%emt 0:00:00]} 47. axb4 {[%emt 0:00:01]} axb4 {[%emt 0:00:01] Threatens to win with ...b3.} 48. Be6 {[%emt 0:00:01] Inhibits b3.} Ne8 {[%emt 0:00:28]} 49. Ke4 {[%emt 0:00:02]} Nf6+ {[%emt 0:00:07]} 50. Kf3 {[%emt 0:00:03]} b3 {[%emt 0:00:05]} 51. Bxb3 {[%emt 0:00:03]} Nxg4 52. Be6 {[%emt 0:00:05]} Nf6 {[%emt 0:00:01]} 53. Bf7 {[%emt 0:00:01] Blacks defense is rewarded with a draw.   Weighted Error Value: White=0.12 (very precise) /Black=0.12 (very precise)} 1/2-1/2

[Event "1st Kallai Gabor Memorial Blitz 2022"]
[Site "Budapest"]
[Date "2022.12.01"]
[Round "2.4"]
[White "Berkes, Ferenc"]
[Black "Kozak, Adam"]
[Result "1/2-1/2"]
[ECO "C42"]
[WhiteElo "2643"]
[BlackElo "2538"]
[Annotator "TA"]
[PlyCount "35"]
[EventDate "2022.12.01"]
[EventType "blitz"]
[EventCountry "HUN"]
[SourceTitle "playchess.com"]
[Source "ChessBase"]
[SourceQuality "1"]
[TimeControl "300+3"]

{[%evp 18,21,8,19,22,19]} 1. e4 {[%emt 0:00:04]} e5 {[%emt 0:00:04]} 2. Nf3 {[%emt 0:00:02]} Nf6 {[%emt 0:00:05]} 3. Nxe5 {[%emt 0:00:03]} d6 {[%emt 0:00:02]} 4. Nf3 {[%emt 0:00:03]} Nxe4 {[%emt 0:00:08]} 5. Qe2 {[%emt 0:00:02]} Qe7 {[%emt 0:00:05]} 6. d3 {[%emt 0:00:04]} Nf6 {[%emt 0:00:03]} 7. Nc3 {[%emt 0:00:03]} c6 {[%emt 0:00:17]} 8. Bg5 {[%emt 0:00:13]} Qxe2+ {[%emt 0:00:04]} 9. Bxe2 {[%emt 0:00:01]} Be7 {[%emt 0:00:04]} 10. O-O-O {[%emt 0:00:09]} d5 {[%emt 0:00:22] C42: Petroff Defence: 3 Nxe5 and unusual White 3rd moves.} 11. Rhe1 {[%emt 0:00:02] [#] A rather calm draw.} {Predecessor:} Na6 $146 12. Nd4 O-O 13. Bf3 Bd8 14. Nce2 Nc7 15. h3 Ne6 16. Nxe6 Bxe6 17. Nf4 Re8 18. Re2 {½-½ (32) Ninov,N (2543)-Popchev,M (2465) Bankia 2011} 1/2-1/2

[Event "1st Kallai Gabor Memorial Blitz 2022"]
[Site "Budapest"]
[Date "2022.12.01"]
[Round "2.5"]
[White "Ruck, Robert"]
[Black "Bjerre, Jonas Buhl"]
[Result "1-0"]
[ECO "A04"]
[WhiteElo "2537"]
[BlackElo "2622"]
[Annotator "TA"]
[PlyCount "75"]
[EventDate "2022.12.01"]
[EventType "blitz"]
[EventCountry "HUN"]
[SourceTitle "playchess.com"]
[Source "ChessBase"]
[SourceQuality "1"]
[TimeControl "300+3"]

{[%evp 14,75,35,33,40,23,30,0,0,3,5,8,13,3,7,0,0,-7,-7,-18,0,-17,-26,-22,-33,-60,-48,-58,-49,-42,-44,-46,-33,-29,-10,-7,-29,-125,0,0,0,0,0,-164,0,-4,0,-9,-20,-18,89,97,234,241,519,489,1453,1387,1913,1927,2587,2520,29991,29992]} 1. Nf3 {[%emt 0:00:04]} c5 {[%emt 0:00:04]} 2. c4 {[%emt 0:00:02]} Nc6 {[%emt 0:00:01]} 3. Nc3 {[%emt 0:00:02]} g6 {[%emt 0:00:01]} 4. e3 {[%emt 0:00:01]} Bg7 {[%emt 0:00:01]} 5. d4 {[%emt 0:00:01]} d6 {[%emt 0:00:01]} 6. d5 {[%emt 0:00:01]} Ne5 {[%emt 0:00:01]} 7. Nxe5 {[%emt 0:00:08]} Bxe5 {[%emt 0:00:01]} 8. Bd3 {[%emt 0:00:02]} e6 {[%emt 0:00:02] A35: Symmetrical English: 2 Nc3 Nc6 3 Nf3.} 9. e4 {[%emt 0:00:43]} exd5 {[%emt 0:00:02] [#]} 10. Nxd5 $146 {[%emt 0:00:05]} ({Predecessor:} 10. cxd5 a6 11. O-O {½-½ (11) Savchenko,S (2498)-Varga,Z (2446) Budapest 2013}) 10... Nf6 {[%emt 0:00:31] The position is equal.} 11. Ne3 {[%emt 0:00:27]} O-O {[%emt 0:00:15]} 12. O-O {[%emt 0:00:02]} Re8 {[%emt 0:00:11][%cal Of6e4]} 13. Re1 {[%emt 0:00:08]} a6 {[%emt 0:00:14]} 14. a4 {[%emt 0:00:59]} Bd7 {[%emt 0:00:18]} 15. Ra3 {[%emt 0:00:11]} Bc6 {[%emt 0:00:15]} 16. f3 {[%emt 0:00:01]} Nh5 {[%emt 0:00:28][%cal Of7f5]} 17. Ng4 {[%emt 0:00:47] Inhibits f5.} Bd4+ {[%emt 0:00:10]} 18. Be3 {[%emt 0:00:02]} Bxb2 {[%emt 0:00:09]} 19. Ra2 {[%emt 0:00:00]} Bg7 {[%emt 0:00:17]} (19... Bc3 $5 {[%cal Rc3e1]}) 20. Qd2 {[%emt 0:00:04]} Qd7 {[%emt 0:00:48]} 21. a5 {[%emt 0:00:06]} Nf6 {[%emt 0:00:08]} 22. Nh6+ {[%emt 0:00:31]} Kf8 {[%emt 0:00:01]} 23. Bf1 {[%emt 0:00:07]} Ng8 {[%emt 0:00:08]} 24. Ng4 $1 {[%emt 0:00:01]} Rad8 {[%emt 0:00:58][%cal Oc6e4]} 25. Ra3 {[%emt 0:00:02] [#]} (25. Nf2 $11) 25... Qe6 {[%emt 0:00:07]} (25... Bxe4 $1 $17 {[%mdl 512] Strongly threatening ...Bf5.} 26. Nf2 (26. Rd1 Bc6) 26... Bc6) 26. Rd3 $11 {[%emt 0:00:24][%cal Oe3c5]} (26. Bf2 {is interesting.} f5 27. exf5 Qxf5 28. Rxe8+ Kxe8 29. Rd3) 26... Rd7 {[%emt 0:00:07]} 27. Rd1 {[%emt 0:00:11][%cal Rd3d6]} Red8 {[%emt 0:00:11][%cal Oc6e4]} 28. Qc1 $2 {[%emt 0:00:21] [#]} (28. Bf4 $11) 28... Ne7 $2 {[%emt 0:00:07]} ({Better is} 28... Bxe4 $1 $19 {[%mdl 512]} 29. Rb3 Bc6) 29. Bg5 {[%emt 0:00:23]} f6 {[%emt 0:00:05]} 30. Bf4 {[%emt 0:00:01]} f5 {[%emt 0:00:04]} 31. Nf2 {[%emt 0:00:10]} fxe4 (31... Kg8 $11 {remains equal.}) 32. fxe4 $16 Be5 {[%emt 0:00:10] [#] This move loses the game for Black.} (32... Bxe4 $2 33. Re1 Be5 34. Nxe4 $18) (32... Qf6 $16) 33. g3 $1 $18 {[%emt 0:00:18] Threatens to win with Bh3.} Kg8 $2 {[%emt 0:00:03]} (33... Qf7 34. Bh3 Bxf4 35. gxf4 Rc7 36. Rxd6 Rxd6 37. Rxd6 Be8) 34. Bh3 {[%emt 0:00:01][%cal Bf1h3,Bh3d7,Bd7e6][%mdl 96] Skewer} Qf6 {[%emt 0:00:09]} (34... Nf5 $142 35. Bxe5 Qxe5 36. exf5 gxf5 37. Qg5+ Kh8) 35. Ng4 {[%emt 0:00:12] aiming for Bxe5.} Qg7 {[%emt 0:00:15]} 36. Nxe5 {[%emt 0:00:02][%mdl 64] Discovered Attack} dxe5 {[%emt 0:00:05]} 37. Bxd7 {[%emt 0:00:01] Threatening mate with Be6+.} exf4 38. Be6+ {[%emt 0:00:01] Weighted Error Value: White=0.19 (very precise) /Black=0.57} 1-0